[Event "Titled Tuesday Blitz July 18 Late 2023"]
[White "Cardozo Munar, Carlos Eduardo"]
[Black "Shubenkova, Veronika"]
[WhiteFideId "4409477"]
[BlackFideId "44124040"]
[WhiteElo "2244"]
[BlackElo "2491"]
[Result "0-1"]
[Round "8"]
[TimeControl "180+2"]
[Date "2023.07.18"]
[WhiteClock "0:00:10"]
[BlackClock "0:01:08"]
[Board "119"]

1. e4 {[%clk 0:02:40]}  e6 {[%clk 0:02:59]} 2. Nf3 {[%clk 0:02:40]}  d5 {[%clk 0:02:59]} 3. d3 {[%clk 0:02:39]}  Nf6 {[%clk 0:02:59]} 4. Nbd2 {[%clk 0:02:39]}  c5 {[%clk 0:02:58]} 5. g3 {[%clk 0:02:39]}  Nc6 {[%clk 0:02:57]} 6. Bg2 {[%clk 0:02:40]}  d4 {[%clk 0:02:57]} 7. O-O {[%clk 0:02:40]}  e5 {[%clk 0:02:57]} 8. c3 {[%clk 0:02:40]}  Bd6 {[%clk 0:02:57]} 9. Nc4 {[%clk 0:02:38]}  O-O {[%clk 0:02:55]} 10. Nxd6 {[%clk 0:02:38]}  Qxd6 {[%clk 0:02:55]} 11. cxd4 {[%clk 0:02:39]}  cxd4 {[%clk 0:02:55]} 12. a3 {[%clk 0:02:39]}  Bg4 {[%clk 0:02:55]} 13. Bg5 {[%clk 0:02:39]}  h6 {[%clk 0:02:54]} 14. Bd2 {[%clk 0:02:39]}  a5 {[%clk 0:02:52]} 15. Qb3 {[%clk 0:02:18]}  Nd7 {[%clk 0:02:49]} 16. Rac1 {[%clk 0:02:18]}  Nc5 {[%clk 0:02:45]} 17. Qb5 {[%clk 0:02:18]}  Ne6 {[%clk 0:02:33]} 18. Qxb7 {[%clk 0:02:16]}  Ne7 {[%clk 0:02:20]} 19. Qb3 {[%clk 0:02:06]}  Rfb8 {[%clk 0:02:19]} 20. Qc2 {[%clk 0:02:05]}  Rc8 {[%clk 0:02:13]} 21. Qb1 {[%clk 0:02:05]}  Nc5 {[%clk 0:02:12]} 22. b4 {[%clk 0:02:03]}  Na4 {[%clk 0:02:09]} 23. bxa5 {[%clk 0:01:55]}  Nc3 {[%clk 0:02:05]} 24. Bxc3 {[%clk 0:01:51]}  dxc3 {[%clk 0:02:06]} 25. Qb4 {[%clk 0:01:52]}  Qxd3 {[%clk 0:01:58]} 26. Nxe5 {[%clk 0:01:45]}  Qe2 {[%clk 0:01:35]} 27. Qxe7 {[%clk 0:01:38]}  Be6 {[%clk 0:01:29]} 28. Rfd1 {[%clk 0:01:11]}  Rab8 {[%clk 0:01:24]} 29. Nd3 {[%clk 0:00:38]}  c2 {[%clk 0:01:15]} 30. Re1 {[%clk 0:00:16]}  Qxd3 {[%clk 0:01:14]} 31. f4 {[%clk 0:00:16]}  Rb1 {[%clk 0:01:08]} 32. f5 {[%clk 0:00:11]}  Rxc1 {[%clk 0:01:08]} 33. Rxc1 {[%clk 0:00:11]}  Qe3+ {[%clk 0:01:08]} 34. Kf1 {[%clk 0:00:08]}  Qxc1+ {[%clk 0:01:09]} 35. Kf2 {[%clk 0:00:09]}  Qd2+ {[%clk 0:01:09]} 36. Kf3 {[%clk 0:00:10]}  c1=Q {[%clk 0:01:09]} 37. fxe6 {[%clk 0:00:10]}  Qcd1# {[%clk 0:01:08]} 0-1


[Site "https://www.chess.com"]

[Event "Titled Tuesday Blitz July 18 Late 2023"]
[White "De Souza, Cristiano Gomes"]
[Black "Seletsky, Grigory"]
[WhiteFideId "2151758"]
[BlackFideId "14112191"]
[WhiteElo "2243"]
[BlackElo "2473"]
[Result "0-1"]
[Round "8"]
[TimeControl "180+2"]
[Date "2023.07.18"]
[WhiteClock "0:00:42"]
[BlackClock "0:01:26"]
[Board "120"]

1. d4 {[%clk 0:03:00]}  g6 {[%clk 0:03:00]} 2. c4 {[%clk 0:03:00]}  Bg7 {[%clk 0:03:01]} 3. Nc3 {[%clk 0:02:59]}  c6 {[%clk 0:03:01]} 4. Nf3 {[%clk 0:02:57]}  d6 {[%clk 0:02:58]} 5. e4 {[%clk 0:02:56]}  Nf6 {[%clk 0:02:58]} 6. Be2 {[%clk 0:02:57]}  O-O {[%clk 0:02:59]} 7. O-O {[%clk 0:02:56]}  Nbd7 {[%clk 0:02:59]} 8. Be3 {[%clk 0:02:55]}  e5 {[%clk 0:02:59]} 9. h3 {[%clk 0:02:54]}  exd4 {[%clk 0:02:55]} 10. Nxd4 {[%clk 0:02:53]}  Re8 {[%clk 0:02:56]} 11. Qc2 {[%clk 0:02:53]}  Nc5 {[%clk 0:02:55]} 12. f3 {[%clk 0:02:51]}  d5 {[%clk 0:02:48]} 13. Nxc6 {[%clk 0:02:49]}  bxc6 {[%clk 0:02:48]} 14. Bxc5 {[%clk 0:02:49]}  dxe4 {[%clk 0:02:46]} 15. Nxe4 {[%clk 0:02:48]}  Nxe4 {[%clk 0:02:45]} 16. fxe4 {[%clk 0:02:48]}  Bd4+ {[%clk 0:02:45]} 17. Bxd4 {[%clk 0:02:47]}  Qxd4+ {[%clk 0:02:46]} 18. Kh1 {[%clk 0:02:47]}  Qxe4 {[%clk 0:02:46]} 19. Qxe4 {[%clk 0:02:47]}  Rxe4 {[%clk 0:02:46]} 20. Bf3 {[%clk 0:02:47]}  Rxc4 {[%clk 0:02:46]} 21. Rac1 {[%clk 0:02:46]}  Rxc1 {[%clk 0:02:45]} 22. Rxc1 {[%clk 0:02:45]}  Bb7 {[%clk 0:02:45]} 23. b4 {[%clk 0:02:42]}  Rb8 {[%clk 0:02:42]} 24. a4 {[%clk 0:02:20]}  Ba8 {[%clk 0:02:34]} 25. Rc4 {[%clk 0:02:14]}  Kf8 {[%clk 0:02:33]} 26. Kg1 {[%clk 0:02:14]}  Ke7 {[%clk 0:02:34]} 27. Kf2 {[%clk 0:02:14]}  Kd6 {[%clk 0:02:34]} 28. Ke3 {[%clk 0:02:14]}  a5 {[%clk 0:02:28]} 29. bxa5 {[%clk 0:02:09]}  c5 {[%clk 0:02:29]} 30. Bxa8 {[%clk 0:02:08]}  Rxa8 {[%clk 0:02:29]} 31. Kd3 {[%clk 0:02:03]}  Rxa5 {[%clk 0:02:29]} 32. Kc3 {[%clk 0:02:03]}  Ra7 {[%clk 0:02:27]} 33. Kb3 {[%clk 0:02:03]}  Kd5 {[%clk 0:02:21]} 34. Rc1 {[%clk 0:02:02]}  Rb7+ {[%clk 0:02:20]} 35. Ka3 {[%clk 0:02:01]}  Re7 {[%clk 0:02:18]} 36. a5 {[%clk 0:02:00]}  Kc6 {[%clk 0:02:19]} 37. Rb1 {[%clk 0:01:57]}  Re3+ {[%clk 0:02:18]} 38. Ka4 {[%clk 0:01:44]}  Re4+ {[%clk 0:02:05]} 39. Ka3 {[%clk 0:01:42]}  c4 {[%clk 0:01:57]} 40. Kb4 {[%clk 0:01:37]}  Re5 {[%clk 0:01:53]} 41. Kxc4 {[%clk 0:01:33]}  Rxa5 {[%clk 0:01:53]} 42. Rb2 {[%clk 0:01:29]}  Ra4+ {[%clk 0:01:49]} 43. Kd3 {[%clk 0:01:28]}  Rf4 {[%clk 0:01:48]} 44. Ke3 {[%clk 0:01:27]}  Rf6 {[%clk 0:01:46]} 45. Ra2 {[%clk 0:01:25]}  Kd7 {[%clk 0:01:42]} 46. Ke2 {[%clk 0:01:22]}  h5 {[%clk 0:01:41]} 47. g3 {[%clk 0:01:21]}  Ke7 {[%clk 0:01:41]} 48. Ra7+ {[%clk 0:01:19]}  Kf8 {[%clk 0:01:39]} 49. Ke3 {[%clk 0:01:19]}  Kg7 {[%clk 0:01:39]} 50. Ra4 {[%clk 0:01:16]}  g5 {[%clk 0:01:39]} 51. Ra5 {[%clk 0:01:15]}  Kg6 {[%clk 0:01:38]} 52. Rb5 {[%clk 0:01:14]}  g4 {[%clk 0:01:37]} 53. hxg4 {[%clk 0:01:14]}  hxg4 {[%clk 0:01:35]} 54. Ke4 {[%clk 0:01:05]}  Rf3 {[%clk 0:01:32]} 55. Rb6+ {[%clk 0:00:58]}  Kg5 {[%clk 0:01:32]} 56. Rb8 {[%clk 0:00:56]}  f5+ {[%clk 0:01:29]} 57. Ke5 {[%clk 0:00:55]}  Re3+ {[%clk 0:01:29]} 58. Kd4 {[%clk 0:00:55]}  Rxg3 {[%clk 0:01:29]} 59. Rg8+ {[%clk 0:00:54]}  Kf4 {[%clk 0:01:28]} 60. Kd5 {[%clk 0:00:42]}  Re3 {[%clk 0:01:26]} 0-1


[Site "https://www.chess.com"]

[Event "Titled Tuesday Blitz July 18 Late 2023"]
[White "De Arruda, Leandro Formes"]
[Black "Bibasa, Bob"]
[WhiteFideId "22722009"]
[BlackFideId "10000240"]
[WhiteElo "2216"]
[BlackElo "2420"]
[Result "0-1"]
[Round "8"]
[TimeControl "180+2"]
[Date "2023.07.18"]
[WhiteClock "0:00:00"]
[BlackClock "0:01:04"]
[Board "122"]

1. d4 {[%clk 0:03:00]}  e6 {[%clk 0:02:56]} 2. Nf3 {[%clk 0:02:59]}  f5 {[%clk 0:02:56]} 3. e3 {[%clk 0:03:00]}  Nf6 {[%clk 0:02:55]} 4. Bd3 {[%clk 0:03:01]}  b6 {[%clk 0:02:54]} 5. Nbd2 {[%clk 0:03:02]}  Bb7 {[%clk 0:02:54]} 6. O-O {[%clk 0:03:03]}  Be7 {[%clk 0:02:55]} 7. Re1 {[%clk 0:03:03]}  O-O {[%clk 0:02:52]} 8. e4 {[%clk 0:03:03]}  fxe4 {[%clk 0:02:50]} 9. Nxe4 {[%clk 0:03:04]}  Nc6 {[%clk 0:02:47]} 10. Qe2 {[%clk 0:03:00]}  Qe8 {[%clk 0:02:44]} 11. c3 {[%clk 0:02:57]}  Qh5 {[%clk 0:02:43]} 12. Ng3 {[%clk 0:02:56]}  Qe8 {[%clk 0:02:32]} 13. Ng5 {[%clk 0:02:43]}  h6 {[%clk 0:02:26]} 14. N5e4 {[%clk 0:02:29]}  Nxe4 {[%clk 0:02:25]} 15. Qxe4 {[%clk 0:02:30]}  Rf6 {[%clk 0:01:48]} 16. Qh7+ {[%clk 0:02:26]}  Kf8 {[%clk 0:01:45]} 17. Nh5 {[%clk 0:02:22]}  Qxh5 {[%clk 0:01:42]} 18. Bf4 {[%clk 0:01:53]}  Bd6 {[%clk 0:01:14]} 19. Bxd6+ {[%clk 0:00:49]}  cxd6 {[%clk 0:01:13]} 20. d5 {[%clk 0:00:41]}  Ne7 {[%clk 0:01:06]} 21. dxe6 {[%clk 0:00:31]}  dxe6 {[%clk 0:01:05]} 22. Re3 {[%clk 0:00:15]}  Nf5 {[%clk 0:01:05]} 23. Bxf5 {[%clk 0:00:00]}  Qxf5 {[%clk 0:01:04]} 0-1


[Site "https://www.chess.com"]

[Event "Titled Tuesday Blitz July 18 Late 2023"]
[White "Francisco_Ferrari"]
[Black "Boor, Carl"]
[BlackFideId "2017008"]
[WhiteElo "2184"]
[BlackElo "2394"]
[Result "0-1"]
[Round "8"]
[TimeControl "180+2"]
[Date "2023.07.18"]
[WhiteClock "0:00:07"]
[BlackClock "0:00:43"]
[Board "124"]

1. e4 {[%clk 0:03:00]}  e5 {[%clk 0:03:00]} 2. Nf3 {[%clk 0:02:58]}  Nf6 {[%clk 0:02:59]} 3. Nxe5 {[%clk 0:02:55]}  d6 {[%clk 0:02:59]} 4. Nf3 {[%clk 0:02:56]}  Nxe4 {[%clk 0:02:59]} 5. Nc3 {[%clk 0:02:57]}  Nxc3 {[%clk 0:02:59]} 6. dxc3 {[%clk 0:02:57]}  Be7 {[%clk 0:02:59]} 7. Be3 {[%clk 0:02:56]}  Nc6 {[%clk 0:03:00]} 8. Qd2 {[%clk 0:02:56]}  Be6 {[%clk 0:03:01]} 9. O-O-O {[%clk 0:02:50]}  h6 {[%clk 0:03:00]} 10. Kb1 {[%clk 0:02:39]}  Bf6 {[%clk 0:02:57]} 11. Bd3 {[%clk 0:02:28]}  Qd7 {[%clk 0:02:54]} 12. Rhe1 {[%clk 0:02:20]}  O-O-O {[%clk 0:02:49]} 13. Nd4 {[%clk 0:02:00]}  Nxd4 {[%clk 0:02:48]} 14. cxd4 {[%clk 0:01:53]}  Qa4 {[%clk 0:02:16]} 15. b3 {[%clk 0:01:34]}  Qc6 {[%clk 0:02:14]} 16. f3 {[%clk 0:01:22]}  d5 {[%clk 0:02:09]} 17. a4 {[%clk 0:01:06]}  a6 {[%clk 0:02:06]} 18. Kb2 {[%clk 0:01:03]}  Qd6 {[%clk 0:02:02]} 19. Ra1 {[%clk 0:00:55]}  Qxh2 {[%clk 0:01:43]} 20. b4 {[%clk 0:00:50]}  Qd6 {[%clk 0:01:30]} 21. b5 {[%clk 0:00:50]}  Qb6 {[%clk 0:01:19]} 22. Kc1 {[%clk 0:00:31]}  a5 {[%clk 0:01:06]} 23. c3 {[%clk 0:00:22]}  Kd7 {[%clk 0:01:04]} 24. Bf4 {[%clk 0:00:22]}  Rde8 {[%clk 0:00:59]} 25. Be5 {[%clk 0:00:20]}  Bxe5 {[%clk 0:00:59]} 26. Rxe5 {[%clk 0:00:20]}  Re7 {[%clk 0:00:55]} 27. Qf4 {[%clk 0:00:19]}  Qd6 {[%clk 0:00:54]} 28. Qh4 {[%clk 0:00:11]}  b6 {[%clk 0:00:52]} 29. Kd2 {[%clk 0:00:11]}  Rhe8 {[%clk 0:00:52]} 30. Rae1 {[%clk 0:00:11]}  f6 {[%clk 0:00:51]} 31. Rxe6 {[%clk 0:00:11]}  Rxe6 {[%clk 0:00:51]} 32. Bf5 {[%clk 0:00:11]}  Kd8 {[%clk 0:00:51]} 33. Rxe6 {[%clk 0:00:10]}  Rxe6 {[%clk 0:00:51]} 34. Bxe6 {[%clk 0:00:10]}  Qxe6 {[%clk 0:00:52]} 35. Qf4 {[%clk 0:00:09]}  g5 {[%clk 0:00:51]} 36. Qh2 {[%clk 0:00:08]}  f5 {[%clk 0:00:50]} 37. Kd3 {[%clk 0:00:06]}  f4 {[%clk 0:00:50]} 38. Qh5 {[%clk 0:00:06]}  Kc8 {[%clk 0:00:49]} 39. Qh2 {[%clk 0:00:03]}  Kb7 {[%clk 0:00:49]} 40. Kc2 {[%clk 0:00:04]}  Qe2+ {[%clk 0:00:48]} 41. Kb3 {[%clk 0:00:03]}  Qc4+ {[%clk 0:00:48]} 42. Ka3 {[%clk 0:00:04]}  Qxc3+ {[%clk 0:00:49]} 43. Ka2 {[%clk 0:00:05]}  Qd2+ {[%clk 0:00:49]} 44. Kb1 {[%clk 0:00:06]}  Qb4+ {[%clk 0:00:48]} 45. Kc1 {[%clk 0:00:06]}  Qc4+ {[%clk 0:00:48]} 46. Kd1 {[%clk 0:00:07]}  Qxd4+ {[%clk 0:00:48]} 47. Ke1 {[%clk 0:00:08]}  Qa1+ {[%clk 0:00:48]} 48. Kf2 {[%clk 0:00:09]}  Qb2+ {[%clk 0:00:47]} 49. Kf1 {[%clk 0:00:10]}  Qc1+ {[%clk 0:00:47]} 50. Ke2 {[%clk 0:00:11]}  Qc2+ {[%clk 0:00:47]} 51. Ke1 {[%clk 0:00:12]}  Qg6 {[%clk 0:00:46]} 52. Kd2 {[%clk 0:00:12]}  Qe6 {[%clk 0:00:45]} 53. Qh5 {[%clk 0:00:10]}  d4 {[%clk 0:00:44]} 54. Qg4 {[%clk 0:00:09]}  Qxg4 {[%clk 0:00:43]} 55. fxg4 {[%clk 0:00:10]}  c5 {[%clk 0:00:43]} 56. Kd3 {[%clk 0:00:07]}  Kc7 {[%clk 0:00:43]} 0-1


[Site "https://www.chess.com"]

[Event "Titled Tuesday Blitz July 18 Late 2023"]
[White "Slovineanu, Viacheslav"]
[Black "gordonzyxu"]
[WhiteFideId "13900510"]
[WhiteElo "2325"]
[BlackElo "2091"]
[Result "1-0"]
[Round "8"]
[TimeControl "180+2"]
[Date "2023.07.18"]
[WhiteClock "0:00:09"]
[BlackClock "0:00:00"]
[Board "126"]

1. d4 {[%clk 0:03:00]}  Nf6 {[%clk 0:02:53]} 2. Nf3 {[%clk 0:03:00]}  g6 {[%clk 0:02:52]} 3. c4 {[%clk 0:02:59]}  Bg7 {[%clk 0:02:52]} 4. Nc3 {[%clk 0:03:00]}  d5 {[%clk 0:02:52]} 5. cxd5 {[%clk 0:02:59]}  Nxd5 {[%clk 0:02:53]} 6. e4 {[%clk 0:02:59]}  Nxc3 {[%clk 0:02:53]} 7. bxc3 {[%clk 0:03:00]}  c5 {[%clk 0:02:54]} 8. Bb5+ {[%clk 0:03:00]}  Nc6 {[%clk 0:02:53]} 9. O-O {[%clk 0:02:58]}  O-O {[%clk 0:02:46]} 10. Bxc6 {[%clk 0:02:58]}  bxc6 {[%clk 0:02:46]} 11. Qc2 {[%clk 0:02:58]}  cxd4 {[%clk 0:02:45]} 12. cxd4 {[%clk 0:02:58]}  Bg4 {[%clk 0:02:36]} 13. Ne5 {[%clk 0:02:58]}  Bxe5 {[%clk 0:02:29]} 14. dxe5 {[%clk 0:02:57]}  Qc7 {[%clk 0:02:27]} 15. Bb2 {[%clk 0:02:48]}  Be6 {[%clk 0:02:25]} 16. Qc5 {[%clk 0:02:45]}  Rab8 {[%clk 0:02:23]} 17. Ba3 {[%clk 0:02:39]}  Rfe8 {[%clk 0:02:22]} 18. Rfc1 {[%clk 0:02:30]}  Bd7 {[%clk 0:02:15]} 19. Rab1 {[%clk 0:02:25]}  Rb6 {[%clk 0:02:09]} 20. Rb3 {[%clk 0:02:03]}  Qb7 {[%clk 0:01:51]} 21. h4 {[%clk 0:01:31]}  Rxb3 {[%clk 0:01:48]} 22. axb3 {[%clk 0:01:31]}  Qxb3 {[%clk 0:01:44]} 23. h5 {[%clk 0:01:26]}  Qb5 {[%clk 0:01:17]} 24. Qxa7 {[%clk 0:01:20]}  Be6 {[%clk 0:01:03]} 25. hxg6 {[%clk 0:01:16]}  hxg6 {[%clk 0:01:02]} 26. Qc7 {[%clk 0:01:00]}  Qb3 {[%clk 0:00:34]} 27. Bxe7 {[%clk 0:00:53]}  Rc8 {[%clk 0:00:21]} 28. Qd6 {[%clk 0:00:48]}  Qb2 {[%clk 0:00:21]} 29. Rd1 {[%clk 0:00:44]}  Qb8 {[%clk 0:00:16]} 30. Qd2 {[%clk 0:00:38]}  Qxe5 {[%clk 0:00:15]} 31. f3 {[%clk 0:00:29]}  c5 {[%clk 0:00:14]} 32. Bd6 {[%clk 0:00:27]}  Qf6 {[%clk 0:00:11]} 33. Bf4 {[%clk 0:00:13]}  c4 {[%clk 0:00:09]} 34. Bg5 {[%clk 0:00:13]}  Qe5 {[%clk 0:00:06]} 35. Bf4 {[%clk 0:00:13]}  Qc5+ {[%clk 0:00:06]} 36. Be3 {[%clk 0:00:13]}  Qe7 {[%clk 0:00:06]} 37. Bd4 {[%clk 0:00:13]}  f5 {[%clk 0:00:04]} 38. Bc3 {[%clk 0:00:12]}  fxe4 {[%clk 0:00:04]} 39. Qd4 {[%clk 0:00:12]}  Qh7 {[%clk 0:00:02]} 40. fxe4 {[%clk 0:00:12]}  Bg4 {[%clk 0:00:02]} 41. Rf1 {[%clk 0:00:11]}  Be6 {[%clk 0:00:02]} 42. Rf6 {[%clk 0:00:11]}  Bf7 {[%clk 0:00:02]} 43. Rd6 {[%clk 0:00:10]}  Re8 {[%clk 0:00:03]} 44. Rd8 {[%clk 0:00:10]}  Kf8 {[%clk 0:00:03]} 45. Qd6+ {[%clk 0:00:09]}  Kg8 {[%clk 0:00:03]} 46. Qf6 {[%clk 0:00:09]}  Rxd8 {[%clk 0:00:00]} 47. Qxd8+ {[%clk 0:00:09]} 1-0


[Site "https://www.chess.com"]

[Event "Titled Tuesday Blitz July 18 Late 2023"]
[White "Garmendiarov"]
[Black "Feliz Dotel, Dewar Bienvenido"]
[BlackFideId "6402801"]
[WhiteElo "2295"]
[BlackElo "2089"]
[Result "1-0"]
[Round "8"]
[TimeControl "180+2"]
[Date "2023.07.18"]
[WhiteClock "0:00:28"]
[BlackClock "0:00:19"]
[Board "127"]

1. e4 {[%clk 0:03:00]}  e5 {[%clk 0:02:57]} 2. Nf3 {[%clk 0:03:00]}  Nc6 {[%clk 0:02:56]} 3. Bb5 {[%clk 0:03:00]}  Nf6 {[%clk 0:02:56]} 4. d3 {[%clk 0:02:59]}  Ne7 {[%clk 0:02:55]} 5. O-O {[%clk 0:02:56]}  c6 {[%clk 0:02:54]} 6. Bc4 {[%clk 0:02:47]}  Ng6 {[%clk 0:02:54]} 7. Re1 {[%clk 0:02:39]}  b5 {[%clk 0:02:53]} 8. Bb3 {[%clk 0:02:39]}  a5 {[%clk 0:02:53]} 9. a4 {[%clk 0:02:39]}  Be7 {[%clk 0:02:48]} 10. Nc3 {[%clk 0:02:37]}  b4 {[%clk 0:02:46]} 11. Ne2 {[%clk 0:02:37]}  O-O {[%clk 0:02:46]} 12. Ng3 {[%clk 0:02:35]}  d6 {[%clk 0:02:37]} 13. Nf5 {[%clk 0:02:23]}  Nf4 {[%clk 0:02:19]} 14. Bxf4 {[%clk 0:02:15]}  exf4 {[%clk 0:02:20]} 15. Qd2 {[%clk 0:02:11]}  Nh5 {[%clk 0:01:50]} 16. g4 {[%clk 0:01:40]}  fxg3 {[%clk 0:01:49]} 17. hxg3 {[%clk 0:01:40]}  Be6 {[%clk 0:01:44]} 18. Nxe7+ {[%clk 0:01:17]}  Qxe7 {[%clk 0:01:43]} 19. Kg2 {[%clk 0:01:11]}  c5 {[%clk 0:01:23]} 20. Rh1 {[%clk 0:01:09]}  Nf6 {[%clk 0:00:52]} 21. Qg5 {[%clk 0:00:54]}  Rae8 {[%clk 0:00:46]} 22. Nh4 {[%clk 0:00:46]}  Nd7 {[%clk 0:00:41]} 23. Qh5 {[%clk 0:00:30]}  Bxb3 {[%clk 0:00:27]} 24. Nf5 {[%clk 0:00:29]}  Qf6 {[%clk 0:00:19]} 25. Qxh7# {[%clk 0:00:28]} 1-0


[Site "https://www.chess.com"]

[Event "Titled Tuesday Blitz July 18 Late 2023"]
[White "Barwinska, Ewa"]
[Black "Floresvillar Gonzalez, Luis Migu"]
[WhiteFideId "21833761"]
[BlackFideId "5100542"]
[WhiteElo "2288"]
[BlackElo "2087"]
[Result "1-0"]
[Round "8"]
[TimeControl "180+2"]
[Date "2023.07.18"]
[WhiteClock "0:00:44"]
[BlackClock "0:00:18"]
[Board "128"]

1. e4 {[%clk 0:03:00]}  c6 {[%clk 0:02:58]} 2. d4 {[%clk 0:02:58]}  d5 {[%clk 0:02:53]} 3. Nc3 {[%clk 0:02:59]}  dxe4 {[%clk 0:02:51]} 4. Nxe4 {[%clk 0:03:00]}  Bf5 {[%clk 0:02:52]} 5. Ng3 {[%clk 0:03:00]}  Bg6 {[%clk 0:02:52]} 6. h4 {[%clk 0:03:01]}  h6 {[%clk 0:02:52]} 7. h5 {[%clk 0:03:02]}  Bh7 {[%clk 0:02:52]} 8. f4 {[%clk 0:03:02]}  e6 {[%clk 0:02:49]} 9. Nf3 {[%clk 0:03:03]}  Nd7 {[%clk 0:02:47]} 10. Bd3 {[%clk 0:03:04]}  Bxd3 {[%clk 0:02:46]} 11. Qxd3 {[%clk 0:03:05]}  Ngf6 {[%clk 0:02:45]} 12. Bd2 {[%clk 0:03:03]}  Qb6 {[%clk 0:02:43]} 13. O-O-O {[%clk 0:03:02]}  O-O-O {[%clk 0:02:36]} 14. Qe2 {[%clk 0:02:55]}  Bb4 {[%clk 0:02:23]} 15. c3 {[%clk 0:02:52]}  Bd6 {[%clk 0:02:04]} 16. Ne5 {[%clk 0:02:45]}  Rhf8 {[%clk 0:02:02]} 17. Nxf7 {[%clk 0:02:19]}  Rxf7 {[%clk 0:01:54]} 18. Qxe6 {[%clk 0:02:18]}  Ba3 {[%clk 0:01:38]} 19. bxa3 {[%clk 0:02:18]}  Rff8 {[%clk 0:01:36]} 20. Nf5 {[%clk 0:02:13]}  Kb8 {[%clk 0:01:21]} 21. Qb3 {[%clk 0:02:08]}  Qa5 {[%clk 0:01:17]} 22. Nxg7 {[%clk 0:02:02]}  Rg8 {[%clk 0:01:17]} 23. Ne6 {[%clk 0:01:59]}  Rde8 {[%clk 0:01:17]} 24. f5 {[%clk 0:01:53]}  Rxg2 {[%clk 0:01:13]} 25. Bf4+ {[%clk 0:01:53]}  Kc8 {[%clk 0:01:05]} 26. Rd2 {[%clk 0:01:04]}  Rxd2 {[%clk 0:01:03]} 27. Bxd2 {[%clk 0:01:05]}  Qxf5 {[%clk 0:01:03]} 28. Ng7 {[%clk 0:01:05]}  Qe4 {[%clk 0:01:00]} 29. Re1 {[%clk 0:00:59]}  Qxe1+ {[%clk 0:00:51]} 30. Bxe1 {[%clk 0:01:00]}  Rxe1+ {[%clk 0:00:50]} 31. Kd2 {[%clk 0:01:01]}  Re7 {[%clk 0:00:46]} 32. Nf5 {[%clk 0:00:58]}  Re8 {[%clk 0:00:41]} 33. Nd6+ {[%clk 0:00:57]}  Kd8 {[%clk 0:00:40]} 34. Nxe8 {[%clk 0:00:56]}  Kxe8 {[%clk 0:00:38]} 35. Qxb7 {[%clk 0:00:55]}  Nxh5 {[%clk 0:00:38]} 36. Qxc6 {[%clk 0:00:54]}  Nf6 {[%clk 0:00:38]} 37. Qa8+ {[%clk 0:00:53]}  Ke7 {[%clk 0:00:37]} 38. Qxa7 {[%clk 0:00:53]}  h5 {[%clk 0:00:35]} 39. Qc7 {[%clk 0:00:51]}  Ke6 {[%clk 0:00:33]} 40. Qc6+ {[%clk 0:00:51]}  Kf5 {[%clk 0:00:32]} 41. Qb5+ {[%clk 0:00:50]}  Kg4 {[%clk 0:00:31]} 42. Qe2+ {[%clk 0:00:46]}  Kg5 {[%clk 0:00:29]} 43. a4 {[%clk 0:00:45]}  h4 {[%clk 0:00:29]} 44. a5 {[%clk 0:00:46]}  h3 {[%clk 0:00:29]} 45. a6 {[%clk 0:00:46]}  Ng4 {[%clk 0:00:24]} 46. a7 {[%clk 0:00:44]}  Nb6 {[%clk 0:00:24]} 47. Qb5+ {[%clk 0:00:45]}  Kh4 {[%clk 0:00:23]} 48. Qxb6 {[%clk 0:00:45]}  h2 {[%clk 0:00:23]} 49. Qc6 {[%clk 0:00:44]}  Nf2 {[%clk 0:00:22]} 50. a8=Q {[%clk 0:00:42]}  h1=N {[%clk 0:00:22]} 51. Qxh1+ {[%clk 0:00:43]}  Nxh1 {[%clk 0:00:18]} 52. Qxh1+ {[%clk 0:00:44]} 1-0


[Site "https://www.chess.com"]

[Event "Titled Tuesday Blitz July 18 Late 2023"]
[White "Piekarski, Atila Balzer"]
[Black "Santos, Rafael Ventura Dos"]
[WhiteFideId "2119552"]
[BlackFideId "2122227"]
[WhiteElo "2062"]
[BlackElo "2283"]
[Result "0-1"]
[Round "8"]
[TimeControl "180+2"]
[Date "2023.07.18"]
[WhiteClock "0:00:34"]
[BlackClock "0:00:32"]
[Board "129"]

1. d4 {[%clk 0:02:27]}  Nf6 {[%clk 0:02:56]} 2. c4 {[%clk 0:02:28]}  g6 {[%clk 0:02:56]} 3. Nc3 {[%clk 0:02:28]}  Bg7 {[%clk 0:02:56]} 4. e4 {[%clk 0:02:28]}  O-O {[%clk 0:02:57]} 5. Nf3 {[%clk 0:02:29]}  d6 {[%clk 0:02:57]} 6. Be2 {[%clk 0:02:29]}  e5 {[%clk 0:02:58]} 7. Be3 {[%clk 0:02:29]}  Ng4 {[%clk 0:02:55]} 8. Bg5 {[%clk 0:02:28]}  f6 {[%clk 0:02:56]} 9. Bc1 {[%clk 0:02:28]}  Nc6 {[%clk 0:02:46]} 10. h3 {[%clk 0:02:23]}  exd4 {[%clk 0:02:44]} 11. Nxd4 {[%clk 0:02:20]}  Nxd4 {[%clk 0:02:42]} 12. Qxd4 {[%clk 0:02:21]}  Ne5 {[%clk 0:02:33]} 13. O-O {[%clk 0:02:18]}  Be6 {[%clk 0:02:27]} 14. f4 {[%clk 0:02:16]}  Nc6 {[%clk 0:02:28]} 15. Qd3 {[%clk 0:02:07]}  f5 {[%clk 0:02:29]} 16. Bd2 {[%clk 0:01:58]}  Re8 {[%clk 0:02:05]} 17. exf5 {[%clk 0:01:58]}  Bxf5 {[%clk 0:02:04]} 18. Qd5+ {[%clk 0:01:58]}  Kh8 {[%clk 0:02:02]} 19. Rae1 {[%clk 0:01:50]}  Nb4 {[%clk 0:01:52]} 20. Qxb7 {[%clk 0:01:42]}  Bd4+ {[%clk 0:01:46]} 21. Kh1 {[%clk 0:01:41]}  Rb8 {[%clk 0:01:47]} 22. Qf3 {[%clk 0:01:36]}  Nc2 {[%clk 0:01:33]} 23. Rd1 {[%clk 0:01:35]}  Rxb2 {[%clk 0:01:31]} 24. Bc1 {[%clk 0:01:36]}  Rb8 {[%clk 0:01:18]} 25. Nd5 {[%clk 0:01:25]}  Bg7 {[%clk 0:01:11]} 26. Bd3 {[%clk 0:01:21]}  Nd4 {[%clk 0:01:04]} 27. Qg3 {[%clk 0:01:22]}  Bxd3 {[%clk 0:01:04]} 28. Qxd3 {[%clk 0:01:23]}  Nf5 {[%clk 0:01:05]} 29. Kh2 {[%clk 0:01:17]}  h5 {[%clk 0:00:49]} 30. Rfe1 {[%clk 0:01:17]}  c6 {[%clk 0:00:43]} 31. Ne3 {[%clk 0:01:12]}  Nxe3 {[%clk 0:00:39]} 32. Rxe3 {[%clk 0:01:12]}  Rxe3 {[%clk 0:00:39]} 33. Bxe3 {[%clk 0:01:10]}  d5 {[%clk 0:00:37]} 34. Qxg6 {[%clk 0:01:08]}  d4 {[%clk 0:00:35]} 35. Qxh5+ {[%clk 0:01:02]}  Kg8 {[%clk 0:00:36]} 36. Qg5 {[%clk 0:00:44]}  Qxg5 {[%clk 0:00:32]} 37. fxg5 {[%clk 0:00:34]}  dxe3 {[%clk 0:00:32]} 0-1


[Site "https://www.chess.com"]